Workbook

Sheet Inndata timer (hidden)
A2: 6.1 - Rigg og drift | K2: Lim inn alt i celle K3: | M2: 3 | N2: 4 | O2: 5 | P2: 6 | Q2: 7 | R2: 8 | S2: 9 | T2: 10 | U2: 11 | V2: 12 | W2: 13 | X2: 14 | Y2: 15 | Z2: 16 | AA2: 17 | AB2: 18
B3: 6.1.20 - Rigg og drift av byggeplass | F3: 1 | G3: =IF(H3=1,I3,) -> 0 | H3: =COUNT(I3) -> 0 | I3: =VLOOKUP("6.1.20 - Rigg og drift av byggeplass",$K$3:$AD$115,5,FALSE) -> 
B4: 6.1.40 - Riving og klargjøring | F4: 2 | G4: 0 | H4: 0 | I4: =VLOOKUP("6.1.40 - Riving og klargjøring",$K$3:$AD$115,5,FALSE) -> 
B5: 6.1.50 - Stillasjer | F5: 3 | G5: 0 | H5: 0 | I5: =VLOOKUP("6.1.50 - Stillasjer",$K$3:$AD$115,5,FALSE) -> 
A6: 6.4 - Tett råbygg | F6: 4
B7: 6.4.10 - Svillunderlag og bunnsvill | F7: 5 | G7: 0 | H7: 0 | I7: =VLOOKUP("6.4.10 - Svillunderlag og bunnsvill",$K$3:$AD$115,5,FALSE) -> 
B8: 6.4.20 - Bindingsverk i yttervegger | F8: 6 | G8: 0 | H8: 0 | I8: =VLOOKUP("6.4.20 - Bindingsverk i yttervegger",$K$3:$AD$115,5,FALSE) -> 
B9: 6.4.22 - Bindingsverk i innvendige bærevegger | F9: 7 | G9: 0 | H9: 0 | I9: =VLOOKUP("6.4.22 - Bindingsverk i innvendige bærevegger",$K$3:$AD$115,5,FALSE) -> 
B10: 6.4.24 - Søyler og dragere | F10: 8 | G10: 0 | H10: 0 | I10: =VLOOKUP("6.4.24 - Søyler og dragere",$K$3:$AD$115,5,FALSE) -> 
B11: 6.4.30 - Bjelkelag | F11: 9 | G11: 0 | H11: 0 | I11: =VLOOKUP("6.4.30 - Bjelkelag",$K$3:$AD$115,5,FALSE) -> 
B12: 6.4.32 - Takbjelkelag | F12: 10 | G12: 0 | H12: 0 | I12: =VLOOKUP("6.4.32 - Takbjelkelag",$K$3:$AD$115,5,FALSE) -> 
B13: 6.4.34 - Plattformgulv | F13: 11 | G13: 0 | H13: 0 | I13: =VLOOKUP("6.4.34 - Plattformgulv",$K$3:$AD$115,5,FALSE) -> 
B14: 6.4.40 - Taksperrer | F14: 12 | G14: 0 | H14: 0 | I14: =VLOOKUP("6.4.40 - Taksperrer",$K$3:$AD$115,5,FALSE) -> 
B15: 6.4.42 - Takstoler | F15: 13 | G15: 0 | H15: 0 | I15: =VLOOKUP("6.4.42 - Takstoler",$K$3:$AD$115,5,FALSE) -> 
B16: 6.4.50 - Vindtettplater/vindsperre og sløyfer | F16: 14 | G16: 0 | H16: 0 | I16: =VLOOKUP("6.4.50 - Vindtettplater/vindsperre og sløyfer",$K$3:$AD$115,5,FALSE) -> 
B17: 6.4.52 - Undertak og sløyfer | F17: 15 | G17: 0 | H17: 0 | I17: =VLOOKUP("6.4.52 - Undertak og sløyfer",$K$3:$AD$115,5,FALSE) -> 
B18: 6.4.60 - Vindu og dører med tetting | F18: 16 | G18: 0 | H18: 0 | I18: =VLOOKUP("6.4.60 - Vindu og dører med tetting",$K$3:$AD$115,5,FALSE) -> 
B19: 6.4.70 - Ledig | F19: 17 | G19: 0 | H19: 0 | I19: =VLOOKUP("6.4.70 - Ledig",$K$3:$AD$115,5,FALSE) -> 
B20: 6.4.80 - Montering elementer | F20: 18 | G20: 0 | H20: 0 | I20: =VLOOKUP("6.4.80 - Montering elementer",$K$3:$AD$115,5,FALSE) -> 
A21: 6.5 - Fasade | F21: 19
B22: 6.5.20 - Utvendig kledning med lekter | F22: 20 | G22: 0 | H22: 0 | I22: =VLOOKUP("6.5.20 - Utvendig kledning med lekter",$K$3:$AD$115,5,FALSE) -> 
B23: 6.5.22 - Omramming dør/vindu | F23: 21 | G23: 0 | H23: 0 | I23: =VLOOKUP("6.5.22 - Omramming dør/vindu",$K$3:$AD$115,5,FALSE) -> 
B24: 6.5.24 - Hjørnebord, dekkeforkanter, fasadedekor, etc. | F24: 22 | G24: 0 | H24: 0 | I24: =VLOOKUP("6.5.24 - Hjørnebord, dekkeforkanter, fasadedekor, etc.",$K$3:$AD$115,5,FALSE) -> 
B25: 6.5.30 - Gesims- gavlkasser, forkantbord og vindskier | F25: 23 | G25: 0 | H25: 0 | I25: =VLOOKUP("6.5.30 - Gesims- gavlkasser, forkantbord og vindskier",$K$3:$AD$115,5,FALSE) -> 
B26: 6.5.40 - Steinlekter, takrenner og taktekking | F26: 24 | G26: 0 | H26: 0 | I26: =VLOOKUP("6.5.40 - Steinlekter, takrenner og taktekking",$K$3:$AD$115,5,FALSE) -> 
B27: 6.5.50 - Terrassegulv, rekkverk og utv. trapper | F27: 25 | G27: 0 | H27: 0 | I27: =VLOOKUP("6.5.50 - Terrassegulv, rekkverk og utv. trapper",$K$3:$AD$115,5,FALSE) -> 
B28: 6.5.60 - Ledig | F28: 26 | G28: 0 | H28: 0 | I28: =VLOOKUP("6.5.60 - Ledig",$K$3:$AD$115,5,FALSE) -> 
B29: 6.5.90 - Stålpipe | F29: 27 | G29: 0 | H29: 0 | I29: =VLOOKUP("6.5.90 - Stålpipe",$K$3:$AD$115,5,FALSE) -> 
A30: 6.6 - Klart for rør og EL | F30: 28
B31: 6.6.10 - Isolasjon og dampsperre i yttervegg og yttertak | F31: 29 | G31: 0 | H31: 0 | I31: =VLOOKUP("6.6.10 - Isolasjon og dampsperre i yttervegg og yttertak",$K$3:$AD$115,5,FALSE) -> 
B32: 6.6.14 - Isolasjon i innervegg og etasjeskillere | F32: 30 | G32: 0 | H32: 0 | I32: =VLOOKUP("6.6.14 - Isolasjon i innervegg og etasjeskillere",$K$3:$AD$115,5,FALSE) -> 
B33: 6.6.20 - Lekting av vegger og himling | F33: 31 | G33: 0 | H33: 0 | I33: =VLOOKUP("6.6.20 - Lekting av vegger og himling",$K$3:$AD$115,5,FALSE) -> 
B34: 6.6.30 - Bindingsverk i lettvegger | F34: 32 | G34: 0 | H34: 0 | I34: =VLOOKUP("6.6.30 - Bindingsverk i lettvegger",$K$3:$AD$115,5,FALSE) -> 
B35: 6.6.40 - Skyvedørskarmer | F35: 33 | G35: 0 | H35: 0 | I35: =VLOOKUP("6.6.40 - Skyvedørskarmer",$K$3:$AD$115,5,FALSE) -> 
B36: 6.6.50 - Rørsystem Ventilasjon og sentralstøvsuger | F36: 34 | G36: 0 | H36: 0 | I36: =VLOOKUP("6.6.50 - Rørsystem Ventilasjon og sentralstøvsuger",$K$3:$AD$115,5,FALSE) -> 
B37: 6.6.90 - Ledig | F37: 35 | G37: 0 | H37: 0 | I37: =VLOOKUP("6.6.90 - Ledig",$K$3:$AD$115,5,FALSE) -> 
A38: 6.7 - Ferdigstillelse | F38: 36
B39: 6.7.10 - Innvendige plater og panel | F39: 37 | G39: 0 | H39: 0 | I39: =VLOOKUP("6.7.10 - Innvendige plater og panel",$K$3:$AD$115,5,FALSE) -> 
B40: 6.7.20 - Gulvbord og parkett | F40: 38 | G40: 0 | H40: 0 | I40: =VLOOKUP("6.7.20 - Gulvbord og parkett",$K$3:$AD$115,5,FALSE) -> 
B41: 6.7.22 - Baderomsplater | F41: 39 | G41: 0 | H41: 0 | I41: =VLOOKUP("6.7.22 - Baderomsplater",$K$3:$AD$115,5,FALSE) -> 
B42: 6.7.30 - Innerdører | F42: 40 | G42: 0 | H42: 0 | I42: =VLOOKUP("6.7.30 - Innerdører",$K$3:$AD$115,5,FALSE) -> 
B43: 6.7.32 - Ytterdører med utv. omramming | F43: 41 | G43: 0 | H43: 0 | I43: =VLOOKUP("6.7.32 - Ytterdører med utv. omramming",$K$3:$AD$115,5,FALSE) -> 
B44: 6.7.40 - Utforinger og listverk | F44: 42 | G44: 0 | H44: 0 | I44: =VLOOKUP("6.7.40 - Utforinger og listverk",$K$3:$AD$115,5,FALSE) -> 
B45: 6.7.50 - Ventilasjonsaggregat/sentralstøvsuger m/punkter | F45: 43 | G45: 0 | H45: 0 | I45: =VLOOKUP("6.7.50 - Ventilasjonsaggregat/sentralstøvsuger m/punkter",$K$3:$AD$115,5,FALSE) -> 
B46: 6.7.76 - Kjøkken-/bad- og garderobeinnredninger | F46: 44 | G46: 0 | H46: 0 | I46: =VLOOKUP("6.7.76 - Kjøkken-/bad- og garderobeinnredninger",$K$3:$AD$115,5,FALSE) -> 
B47: 6.7.86 - Montering Ildsted | F47: 45 | G47: 0 | H47: 0 | I47: =VLOOKUP("6.7.86 - Montering Ildsted",$K$3:$AD$115,5,FALSE) -> 
B48: 6.7.88 - Annen innredning | F48: 46 | G48: 0 | H48: 0 | I48: =VLOOKUP("6.7.88 - Annen innredning",$K$3:$AD$115,5,FALSE) -> 
G51: =SUM(G3:G49) -> 0

Sheet Tabell (hidden)
A1: Milepæler | G1: 1 | H1: 2 | I1: 3 | J1: 4 | K1: 5 | L1: 6 | M1: 7 | N1: 8 | O1: 9 | P1: 10 | Q1: 11 | R1: 12 | S1: 13 | T1: 14 | U1: 15 | V1: 16 | W1: 17 | X1: 18 | Y1: 19 | Z1: 20 | AA1: 21 | AB1: 22 | AC1: 23 | AD1: 24 | AE1: 25 | AF1: 26 | AG1: 27 | AH1: 28 | AI1: 29 | AJ1: 30 | AK1: 31 | AL1: 32 | AM1: 33 | AN1: 34 | AO1: 35 | AP1: 36 | AQ1: 37 | AR1: 38 | AS1: 39 | AT1: 40 | AU1: 41 | AV1: 42 | AW1: 43 | AX1: 44 | AY1: 45 | AZ1: 46 | BA1: 47
A2: 6.1 - Rigg og drift | G2: =B59 -> Velg garasjetype | I2: =B61 -> GA 101 S-W - Enkel garasje | J2: =B62 -> GA 102 S-W - Enkel garasje | K2: =B63 -> GA 103 V-W - Enkel garasje | L2: =B64 -> GA 104 HV-W - Enkel garasje | M2: =B65 -> GA 106 S-W - Enkel garasje | N2: =B66 -> GA 107 S-W - Enkel carport | O2: =B67 -> GA 108 S-W - Enkel garasje | P2: =B68 -> GA 109 S-W - Enkel garasje | Q2: =B69 -> GA 111 F - Enkel carport | R2: =B70 -> GA 112 F - Enkel garasje | S2: =$B71 -> GA 201 S-W - Dobbel garasje | T2: =$B72 -> GA 202 S-W - Dobbel garasje | U2: =$B73 -> GA 203 V-W - Dobbel garasje | V2: =$B74 -> GA 204 HV-W - Dobbel garasje | W2: =$B75 -> GA 206 S-W - Dobbel garasje | X2: =$B76 -> GA 207 P - Enkel garasje m/ carpor | Y2: =$B77 -> GA 208 S-W - Dobbel garasje | Z2: =$B78 -> GA 209 S-W - Dobbel garasje | AA2: =$B79 -> GA 211 F - Dobbel garasje | AB2: =$B80 -> GA 301 S-W - Enkel garasje m/bod | AC2: =$B81 -> GA 302 S-W - Enkel garasje m/bod | AD2: =$B82 -> GA 303 V-W - Enkel garasje m/bod | AE2: =$B83 -> GA 305 P - Enkel garasje m/bod | AF2: =$B84 -> GA 307 P - Enkel garasje m/bod | AG2: =$B85 -> GA 308 F - Dobbel garasje m/ bod | AH2: =$B86 -> GA 309 P - Carport m/ bod | AI2: =$B87 -> GA 310 F - Carport m/ bod | AJ2: =$B88 -> GA 311 F - Carport m/ bod | AK2: =$B89 -> GA 401 S-A - Dobbel garasje m/ hems | AL2: =$B90 -> GA 402 S-A - Dobbel garasje m/ hems | AM2: =$B91 -> GA 403 S-A - Dobbel garasje m/ hems | AN2: =$B92 -> GA 404 HV-A - Dobbel garasje m/ hems | AO2: =$B93 -> GA 405 S-A - Dobbel garasje m/ hems | AP2: =$B94 -> 0 | AQ2: =$B95 -> 0 | AR2: =$B96 -> 0 | AS2: =$B97 -> 0 | AT2: =$B98 -> 0 | AU2: =$B99 -> 0 | AV2: =$B100 -> 0 | AW2: =$B101 -> 0 | AX2: =$B102 -> 0 | AY2: =$B103 -> 0 | AZ2: =$B104 -> 0 | BA2: 34 | BB2: 3 | BI2: 51
B3: 6.1.20 - Rigg og drift av byggeplass | F3: 1 | G3: 0 | I3: 0 | J3: 0 | K3: 0 | L3: 0 | M3: 0 | N3: 0 | O3: 0 | P3: 0 | Q3: 0 | R3: 0 | S3: 0 | T3: 0 | U3: 0 | V3: 0 | W3: 0 | X3: 0 | Y3: 0 | Z3: 0 | AA3: 0 | AB3: 0 | AC3: 0 | AD3: 0 | AE3: 0 | AF3: 0 | AG3: 0 | AH3: 0 | AI3: 0 | AJ3: 0 | AK3: 0 | AL3: 0 | AM3: 0 | AN3: 0 | AO3: 0
B4: 6.1.40 - Riving og klargjøring | F4: 2 | G4: 0 | I4: 0 | J4: 0 | K4: 0 | L4: 0 | M4: 0 | N4: 0 | O4: 0 | P4: 0 | Q4: 0 | R4: 0 | S4: 0 | T4: 0 | U4: 0 | V4: 0 | W4: 0 | X4: 0 | Y4: 0 | Z4: 0 | AA4: 0 | AB4: 0 | AC4: 0 | AD4: 0 | AE4: 0 | AF4: 0 | AG4: 0 | AH4: 0 | AI4: 0 | AJ4: 0 | AK4: 0 | AL4: 0 | AM4: 0 | AN4: 0 | AO4: 0
B5: 6.1.50 - Stillasjer | F5: 3 | G5: 0 | I5: 0 | J5: 0 | K5: 0 | L5: 0 | M5: 0 | N5: 0 | O5: 0 | P5: 0 | Q5: 0 | R5: 0 | S5: 0 | T5: 0 | U5: 0 | V5: 0 | W5: 0 | X5: 0 | Y5: 0 | Z5: 0 | AA5: 0 | AB5: 0 | AC5: 0 | AD5: 0 | AE5: 0 | AF5: 0 | AG5: 0 | AH5: 0 | AI5: 0 | AJ5: 0 | AK5: 0 | AL5: 0 | AM5: 0 | AN5: 0 | AO5: 0
A6: 6.4 - Tett råbygg | F6: 4 | G6: 0
B7: 6.4.10 - Svillunderlag og bunnsvill | F7: 5 | G7: 0 | I7: 1.48 | J7: 1.48 | K7: 1.48 | L7: 1.48 | M7: 1.98 | N7: 1.2 | O7: 1.69 | P7: 1.58 | Q7: 0.67 | R7: 1.63 | S7: 1.66 | T7: 1.66 | U7: 1.76 | V7: 1.66 | W7: 2.06 | X7: 1.69 | Y7: 1.86 | Z7: 1.78 | AA7: 1.67 | AB7: 1.9 | AC7: 1.95 | AD7: 1.99 | AE7: 1.99 | AF7: 1.79 | AG7: 0.13 | AH7: 1.64 | AI7: 1.02 | AJ7: 1.98 | AK7: 1.67 | AL7: 2.17 | AM7: 1.63 | AN7: 2 | AO7: 2.71
B8: 6.4.20 - Bindingsverk i yttervegger | F8: 6 | G8: 0 | I8: 8.99 | J8: 9.7 | K8: 8.08 | L8: 8.99 | M8: 12.74 | N8: 5.04 | O8: 11.36 | P8: 1.8 | Q8: 6.86 | R8: 13.62 | S8: 11.15 | T8: 10.99 | U8: 9.89 | V8: 12.33 | W8: 15.19 | X8: 13.8 | Y8: 14.42 | Z8: 3.26 | AA8: 13.88 | AB8: 11.91 | AC8: 13.54 | AD8: 11.35 | AE8: 13.53 | AF8: 13.35 | AG8: 17.84 | AH8: 11.82 | AI8: 8.25 | AJ8: 15.99 | AK8: 14.32 | AL8: 16.67 | AM8: 14.76 | AN8: 15.25 | AO8: 19.99
B9: 6.4.22 - Bindingsverk i innvendige bærevegger | F9: 7 | G9: 0 | I9: 0 | J9: 0 | K9: 0 | L9: 0 | M9: 0 | N9: 0 | O9: 0 | P9: 0 | Q9: 0 | R9: 0 | S9: 0 | T9: 0 | U9: 0.68 | V9: 0 | W9: 0 | X9: 0 | Y9: 0 | Z9: 0 | AA9: 0 | AB9: 0.05 | AC9: 0.08 | AD9: 0.06 | AE9: 0.08 | AF9: 0.07 | AG9: 1.5 | AH9: 0.03 | AI9: 0 | AJ9: 0 | AK9: 0 | AL9: 0.08 | AM9: 0 | AN9: 0 | AO9: 0.1
B10: 6.4.24 - Søyler og dragere | F10: 8 | G10: 0 | I10: 0 | J10: 0 | K10: 0 | L10: 0 | M10: 0.26 | N10: 3.5 | O10: 0.47 | P10: 0 | Q10: 3.97 | R10: 2.15 | S10: 0 | T10: 0.53 | U10: 0.55 | V10: 0 | W10: 0 | X10: 1.59 | Y10: 0.47 | Z10: 0 | AA10: 3.43 | AB10: 0 | AC10: 0.26 | AD10: 0.53 | AE10: 0 | AF10: 0 | AG10: 1.93 | AH10: 2.48 | AI10: 1.99 | AJ10: 0 | AK10: 0 | AL10: 0 | AM10: 0 | AN10: 0 | AO10: 1.74
B11: 6.4.30 - Bjelkelag | F11: 9 | G11: 0 | I11: 0 | J11: 0 | K11: 0 | L11: 0 | M11: 0 | N11: 0 | O11: 0 | P11: 0 | Q11: 0.7 | R11: 0.79 | S11: 0 | T11: 0 | U11: 0 | V11: 0 | W11: 0 | X11: 0 | Y11: 0 | Z11: 0 | AA11: 0.94 | AB11: 0 | AC11: 0 | AD11: 0 | AE11: 0 | AF11: 0 | AG11: 0.96 | AH11: 0.65 | AI11: 0.83 | AJ11: 0.77 | AK11: 0 | AL11: 0 | AM11: 0 | AN11: 0 | AO11: 0
B12: 6.4.32 - Takbjelkelag | F12: 10 | G12: 0 | I12: 0 | J12: 0 | K12: 0 | L12: 0 | M12: 0 | N12: 0 | O12: 0 | P12: 0 | Q12: 0 | R12: 0 | S12: 0 | T12: 0 | U12: 0 | V12: 0 | W12: 0 | X12: 0 | Y12: 0 | Z12: 0 | AA12: 0 | AB12: 0 | AC12: 0 | AD12: 0 | AE12: 0 | AF12: 0 | AG12: 0 | AH12: 0 | AI12: 0 | AJ12: 0 | AK12: 0 | AL12: 0 | AM12: 0 | AN12: 0 | AO12: 0
B13: 6.4.34 - Plattformgulv | F13: 11 | G13: 0 | I13: 0 | J13: 0 | K13: 0 | L13: 0 | M13: 0 | N13: 0 | O13: 0 | P13: 0 | Q13: 2.39 | R13: 3.73 | S13: 0 | T13: 0 | U13: 0 | V13: 0 | W13: 0 | X13: 0 | Y13: 0 | Z13: 0 | AA13: 3.15 | AB13: 0 | AC13: 0 | AD13: 0 | AE13: 0 | AF13: 0 | AG13: 3.4 | AH13: 0 | AI13: 2.38 | AJ13: 2.19 | AK13: 2.81 | AL13: 3.92 | AM13: 3.2 | AN13: 3.47 | AO13: 4.53
B14: 6.4.40 - Taksperrer | F14: 12 | G14: 0 | I14: 0 | J14: 0 | K14: 0 | L14: 0 | M14: 0 | N14: 0 | O14: 0 | P14: 0 | Q14: 15 | R14: 19.59 | S14: 0 | T14: 0 | U14: 0 | V14: 0 | W14: 0 | X14: 10.1 | Y14: 0 | Z14: 0 | AA14: 27.58 | AB14: 0 | AC14: 0 | AD14: 0 | AE14: 8.61 | AF14: 0 | AG14: 7.66 | AH14: 8.89 | AI14: 18.98 | AJ14: 17.08 | AK14: 0 | AL14: 0 | AM14: 0 | AN14: 0 | AO14: 0
B15: 6.4.42 - Takstoler | F15: 13 | G15: 0 | I15: 7.46 | J15: 7.56 | K15: 7.46 | L15: 7.46 | M15: 7.46 | N15: 7.46 | O15: 8.92 | P15: 7.46 | Q15: 0.63 | R15: 0.73 | S15: 7.46 | T15: 7.46 | U15: 7.46 | V15: 7.46 | W15: 9.49 | X15: 1.25 | Y15: 8.92 | Z15: 1.25 | AA15: 1.04 | AB15: 9.49 | AC15: 7.56 | AD15: 8.92 | AE15: 1.25 | AF15: 9.49 | AG15: 1.04 | AH15: 1.25 | AI15: 1.25 | AJ15: 1.25 | AK15: 8.14 | AL15: 10.85 | AM15: 8.14 | AN15: 8.92 | AO15: 10.75
B16: 6.4.50 - Vindtettplater/vindsperre og sløyfer | F16: 14 | G16: 0 | I16: 0 | J16: 0 | K16: 0 | L16: 0 | M16: 0 | N16: 0 | O16: 0 | P16: 0 | Q16: 1.08 | R16: 1.69 | S16: 0 | T16: 0 | U16: 0 | V16: 0 | W16: 0 | X16: 0 | Y16: 0 | Z16: 0 | AA16: 1.43 | AB16: 0 | AC16: 0 | AD16: 0 | AE16: 0 | AF16: 0 | AG16: 1.54 | AH16: 0 | AI16: 1.08 | AJ16: 0.99 | AK16: 0 | AL16: 0 | AM16: 0 | AN16: 0 | AO16: 0
B17: 6.4.52 - Undertak og sløyfer | F17: 15 | G17: 0 | I17: 1.21 | J17: 3.52 | K17: 1.39 | L17: 3.82 | M17: 4.9 | N17: 1.36 | O17: 1.85 | P17: 5.12 | Q17: 3.04 | R17: 3.98 | S17: 1.81 | T17: 4.12 | U17: 2.38 | V17: 5.3 | W17: 6.96 | X17: 2.1 | Y17: 6.4 | Z17: 2.1 | AA17: 5.57 | AB17: 1.84 | AC17: 5.18 | AD17: 6.03 | AE17: 1.86 | AF17: 1.62 | AG17: 6.06 | AH17: 5.01 | AI17: 3.85 | AJ17: 3.47 | AK17: 7.7 | AL17: 10.93 | AM17: 8.08 | AN17: 9.32 | AO17: 11.96
B18: 6.4.60 - Vindu og dører med tetting | F18: 16 | G18: 0 | I18: 8.31 | J18: 8.31 | K18: 8.31 | L18: 8.31 | M18: 10.25 | N18: 0 | O18: 8.31 | P18: 8.31 | Q18: 0 | R18: 10.64 | S18: 15.42 | T18: 15.42 | U18: 15.42 | V18: 15.42 | W18: 17.36 | X18: 15.93 | Y18: 8.31 | Z18: 15.42 | AA18: 10.61 | AB18: 9.65 | AC18: 10.84 | AD18: 8.31 | AE18: 11.87 | AF18: 10.04 | AG18: 11.17 | AH18: 3.99 | AI18: 1.35 | AJ18: 1.35 | AK18: 16.44 | AL18: 17.79 | AM18: 10.11 | AN18: 17.36 | AO18: 11.87
B19: 6.4.70 - Ledig | F19: 17 | G19: 0 | I19: 0 | J19: 0 | K19: 0 | L19: 0 | M19: 0 | N19: 0 | O19: 0 | P19: 0 | Q19: 0 | R19: 0 | S19: 0 | T19: 0 | U19: 0 | V19: 0 | W19: 0 | X19: 0 | Y19: 0 | Z19: 0 | AA19: 0 | AB19: 0 | AC19: 0 | AD19: 0 | AE19: 0 | AF19: 0 | AG19: 0 | AH19: 0 | AI19: 0 | AJ19: 0 | AK19: 0 | AL19: 0 | AM19: 0 | AN19: 0 | AO19: 0
B20: 6.4.80 - Montering elementer | F20: 18 | G20: 0 | I20: 0 | J20: 0 | K20: 0 | L20: 0 | M20: 0 | N20: 0 | O20: 0 | P20: 0 | Q20: 0 | R20: 0 | S20: 0 | T20: 0 | U20: 0 | V20: 0 | W20: 0 | X20: 0 | Y20: 0 | Z20: 0 | AA20: 0 | AB20: 0 | AC20: 0 | AD20: 0 | AE20: 0 | AF20: 0 | AG20: 0 | AH20: 0 | AI20: 0 | AJ20: 0 | AK20: 0 | AL20: 0 | AM20: 0 | AN20: 0 | AO20: 0
A21: 6.5 - Fasade | F21: 19 | G21: 0
B22: 6.5.20 - Utvendig kledning med lekter | F22: 20 | G22: 0 | I22: 9.87 | J22: 10.43 | K22: 8.72 | L22: 9.77 | M22: 14.9 | N22: 5.62 | O22: 1.2 | P22: 2.17 | Q22: 9.91 | R22: 35.11 | S22: 12.26 | T22: 12.06 | U22: 10.75 | V22: 13.68 | W22: 16.97 | X22: 15.46 | Y22: 16.22 | Z22: 3.93 | AA22: 26.86 | AB22: 12.87 | AC22: 14.43 | AD22: 12.06 | AE22: 13.87 | AF22: 37.26 | AG22: 27.96 | AH22: 12.3 | AI22: 20.88 | AJ22: 29.16 | AK22: 15.92 | AL22: 18.58 | AM22: 1.55 | AN22: 16.39 | AO22: 12.5
B23: 6.5.22 - Omramming dør/vindu | F23: 21 | G23: 0 | I23: 2.73 | J23: 2.73 | K23: 2.73 | L23: 2.73 | M23: 3.86 | N23: 0 | O23: 2.73 | P23: 0.52 | Q23: 0 | R23: 2.79 | S23: 4.16 | T23: 4.16 | U23: 4.16 | V23: 4.16 | W23: 5.29 | X23: 3.63 | Y23: 2.75 | Z23: 1.04 | AA23: 3.32 | AB23: 3.21 | AC23: 4.51 | AD23: 3.21 | AE23: 5.06 | AF23: 3.4 | AG23: 3.91 | AH23: 1.82 | AI23: 0.46 | AJ23: 0.46 | AK23: 4.92 | AL23: 4.5 | AM23: 4.26 | AN23: 5.6 | AO23: 3.99
B24: 6.5.24 - Hjørnebord, dekkeforkanter, fasadedekor, etc. | F24: 22 | G24: 0 | I24: 1.28 | J24: 1.28 | K24: 1.28 | L24: 1.28 | M24: 1.28 | N24: 1.82 | O24: 1.28 | P24: 0 | Q24: 2.65 | R24: 0 | S24: 1.28 | T24: 1.28 | U24: 1.28 | V24: 1.28 | W24: 1.28 | X24: 2.26 | Y24: 3.56 | Z24: 0 | AA24: 0.67 | AB24: 1.28 | AC24: 1.28 | AD24: 1.28 | AE24: 2.01 | AF24: 1.45 | AG24: 0.59 | AH24: 1.56 | AI24: 0.59 | AJ24: 1.18 | AK24: 1.28 | AL24: 1.28 | AM24: 1.41 | AN24: 1.28 | AO24: 1.28
B25: 6.5.30 - Gesims- gavlkasser, forkantbord og vindskier | F25: 23 | G25: 0 | I25: 17.01 | J25: 19.05 | K25: 13.75 | L25: 15.85 | M25: 24.51 | N25: 17.87 | O25: 21.9 | P25: 18.54 | Q25: 0 | R25: 0 | S25: 21.53 | T25: 21.89 | U25: 17.37 | V25: 16.82 | W25: 26.22 | X25: 23.96 | Y25: 24.82 | Z25: 23.24 | AA25: 0 | AB25: 20.85 | AC25: 22.87 | AD25: 17.9 | AE25: 21.99 | AF25: 14.25 | AG25: 0 | AH25: 6.04 | AI25: 0 | AJ25: 0 | AK25: 23.81 | AL25: 26.95 | AM25: 21.48 | AN25: 23.01 | AO25: 29.5
B26: 6.5.40 - Steinlekter, takrenner og taktekking | F26: 24 | G26: 0 | I26: 10.13 | J26: 7.26 | K26: 13.99 | L26: 12.63 | M26: 8.36 | N26: 7.21 | O26: 11.96 | P26: 17.41 | Q26: 0.99 | R26: 0.88 | S26: 10.16 | T26: 10.16 | U26: 22.41 | V26: 12.05 | W26: 12.22 | X26: 11.95 | Y26: 11.22 | Z26: 9.46 | AA26: 1.41 | AB26: 12.13 | AC26: 10.31 | AD26: 18 | AE26: 8.08 | AF26: 8.61 | AG26: 1.52 | AH26: 10.33 | AI26: 1.01 | AJ26: 1.01 | AK26: 20.85 | AL26: 30.31 | AM26: 22.34 | AN26: 25.86 | AO26: 30.49
B27: 6.5.50 - Terrassegulv, rekkverk og utv. trapper | F27: 25 | G27: 0 | I27: 0 | J27: 0 | K27: 0 | L27: 0 | M27: 0 | N27: 0 | O27: 0 | P27: 0 | Q27: 6.43 | R27: 0 | S27: 0 | T27: 0 | U27: 0 | V27: 0 | W27: 0 | X27: 0 | Y27: 0 | Z27: 0 | AA27: 0 | AB27: 0 | AC27: 0 | AD27: 0 | AE27: 0 | AF27: 0 | AG27: 0 | AH27: 4.99 | AI27: 0 | AJ27: 0 | AK27: 0 | AL27: 0 | AM27: 0 | AN27: 0 | AO27: 0
B28: 6.5.60 - Ledig | F28: 26 | G28: 0 | I28: 0 | J28: 0 | K28: 0 | L28: 0 | M28: 0 | N28: 0 | O28: 0 | P28: 0 | Q28: 0 | R28: 0 | S28: 0 | T28: 0 | U28: 0 | V28: 0 | W28: 0 | X28: 0 | Y28: 0 | Z28: 0 | AA28: 0 | AB28: 0 | AC28: 0 | AD28: 0 | AE28: 0 | AF28: 0 | AG28: 0 | AH28: 0 | AI28: 0 | AJ28: 0 | AK28: 0 | AL28: 0 | AM28: 0 | AN28: 0 | AO28: 0
B29: 6.5.90 - Stålpipe | F29: 27 | G29: 0 | I29: 0 | J29: 0 | K29: 0 | L29: 0 | M29: 0 | N29: 0 | O29: 0 | P29: 0 | Q29: 0 | R29: 0 | S29: 0 | T29: 0 | U29: 0 | V29: 0 | W29: 0 | X29: 0 | Y29: 0 | Z29: 0 | AA29: 0 | AB29: 0 | AC29: 0 | AD29: 0 | AE29: 0 | AF29: 0 | AG29: 0 | AH29: 0 | AI29: 0 | AJ29: 0 | AK29: 0 | AL29: 0 | AM29: 0 | AN29: 0 | AO29: 0
A30: 6.6 - Klart for rør og EL | F30: 28 | G30: 0
B31: 6.6.10 - Isolasjon og dampsperre i yttervegg og yttertak | F31: 29 | G31: 0 | I31: 0 | J31: 0 | K31: 0 | L31: 0 | M31: 0 | N31: 0 | O31: 0 | P31: 0 | Q31: 0 | R31: 0 | S31: 0 | T31: 0 | U31: 0 | V31: 0 | W31: 0 | X31: 0 | Y31: 0 | Z31: 0 | AA31: 0 | AB31: 0 | AC31: 0 | AD31: 0 | AE31: 0 | AF31: 0 | AG31: 0 | AH31: 0 | AI31: 0 | AJ31: 0 | AK31: 0 | AL31: 0 | AM31: 0 | AN31: 0 | AO31: 0
B32: 6.6.14 - Isolasjon i innervegg og etasjeskillere | F32: 30 | G32: 0 | I32: 0 | J32: 0 | K32: 0 | L32: 0 | M32: 0 | N32: 0 | O32: 0 | P32: 0 | Q32: 0 | R32: 0 | S32: 0 | T32: 0 | U32: 0 | V32: 0 | W32: 0 | X32: 0 | Y32: 0 | Z32: 0 | AA32: 0 | AB32: 0 | AC32: 0 | AD32: 0 | AE32: 0 | AF32: 0 | AG32: 0 | AH32: 0 | AI32: 0 | AJ32: 0 | AK32: 0 | AL32: 0 | AM32: 0 | AN32: 0 | AO32: 0
B33: 6.6.20 - Lekting av vegger og himling | F33: 31 | G33: 0 | I33: 0 | J33: 0 | K33: 0 | L33: 0 | M33: 0 | N33: 0 | O33: 0 | P33: 0 | Q33: 0 | R33: 0 | S33: 0 | T33: 0 | U33: 0 | V33: 0 | W33: 0 | X33: 0 | Y33: 0 | Z33: 0 | AA33: 0 | AB33: 0 | AC33: 0 | AD33: 0 | AE33: 3.29 | AF33: 0 | AG33: 0 | AH33: 0 | AI33: 0 | AJ33: 0 | AK33: 0 | AL33: 0 | AM33: 0 | AN33: 0 | AO33: 0
B34: 6.6.30 - Bindingsverk i lettvegger | F34: 32 | G34: 0 | I34: 0 | J34: 0 | K34: 0 | L34: 0 | M34: 0 | N34: 0 | O34: 0 | P34: 0 | Q34: 0 | R34: 0 | S34: 0 | T34: 0 | U34: 0 | V34: 0 | W34: 0 | X34: 0 | Y34: 0 | Z34: 0 | AA34: 0 | AB34: 1.38 | AC34: 2.21 | AD34: 1.65 | AE34: 2.11 | AF34: 1.84 | AG34: 0 | AH34: 0.87 | AI34: 0 | AJ34: 0 | AK34: 0 | AL34: 2.21 | AM34: 0 | AN34: 0 | AO34: 2.3
B35: 6.6.40 - Skyvedørskarmer | F35: 33 | G35: 0 | I35: 0 | J35: 0 | K35: 0 | L35: 0 | M35: 0 | N35: 0 | O35: 0 | P35: 0 | Q35: 0 | R35: 0 | S35: 0 | T35: 0 | U35: 0 | V35: 0 | W35: 0 | X35: 0 | Y35: 0 | Z35: 0 | AA35: 0 | AB35: 0 | AC35: 0 | AD35: 0 | AE35: 0 | AF35: 0 | AG35: 0 | AH35: 0 | AI35: 0 | AJ35: 0 | AK35: 0 | AL35: 0 | AM35: 0 | AN35: 0 | AO35: 0
B36: 6.6.50 - Rørsystem Ventilasjon og sentralstøvsuger | F36: 34 | G36: 0 | I36: 0 | J36: 0 | K36: 0 | L36: 0 | M36: 0 | N36: 0 | O36: 0 | P36: 0 | Q36: 0 | R36: 0 | S36: 0 | T36: 0 | U36: 0 | V36: 0 | W36: 0 | X36: 0 | Y36: 0 | Z36: 0 | AA36: 0 | AB36: 0 | AC36: 0 | AD36: 0 | AE36: 0 | AF36: 0 | AG36: 0 | AH36: 0 | AI36: 0 | AJ36: 0 | AK36: 0 | AL36: 0 | AM36: 0 | AN36: 0 | AO36: 0
B37: 6.6.90 - Ledig | F37: 35 | G37: 0 | I37: 0 | J37: 0 | K37: 0 | L37: 0 | M37: 0 | N37: 0 | O37: 0 | P37: 0 | Q37: 0 | R37: 0 | S37: 0 | T37: 0 | U37: 0 | V37: 0 | W37: 0 | X37: 0 | Y37: 0 | Z37: 0 | AA37: 0 | AB37: 0 | AC37: 0 | AD37: 0 | AE37: 0 | AF37: 0 | AG37: 0 | AH37: 0 | AI37: 0 | AJ37: 0 | AK37: 0 | AL37: 0 | AM37: 0 | AN37: 0 | AO37: 0
A38: 6.7 - Ferdigstillelse | F38: 36 | G38: 0
B39: 6.7.10 - Innvendige plater og panel | F39: 37 | G39: 0 | I39: 0 | J39: 0 | K39: 0 | L39: 0 | M39: 0 | N39: 0 | O39: 0 | P39: 0 | Q39: 0 | R39: 0 | S39: 0 | T39: 0 | U39: 0 | V39: 0 | W39: 0 | X39: 0 | Y39: 0 | Z39: 0 | AA39: 0 | AB39: 0.93 | AC39: 1.49 | AD39: 1.12 | AE39: 1.43 | AF39: 1.25 | AG39: 1.99 | AH39: 0.59 | AI39: 0 | AJ39: 0 | AK39: 0 | AL39: 1.49 | AM39: 0 | AN39: 0 | AO39: 1.87
B40: 6.7.20 - Gulvbord og parkett | F40: 38 | G40: 0 | I40: 0 | J40: 0 | K40: 0 | L40: 0 | M40: 0 | N40: 0 | O40: 0 | P40: 0 | Q40: 0 | R40: 0 | S40: 0 | T40: 0 | U40: 0 | V40: 0 | W40: 0 | X40: 0 | Y40: 0 | Z40: 0 | AA40: 0 | AB40: 0 | AC40: 0 | AD40: 0 | AE40: 0 | AF40: 0 | AG40: 0 | AH40: 0 | AI40: 0 | AJ40: 0 | AK40: 0 | AL40: 0 | AM40: 0 | AN40: 0 | AO40: 0
B41: 6.7.22 - Baderomsplater | F41: 39 | G41: 0 | I41: 0 | J41: 0 | K41: 0 | L41: 0 | M41: 0 | N41: 0 | O41: 0 | P41: 0 | Q41: 0 | R41: 0 | S41: 0 | T41: 0 | U41: 0 | V41: 0 | W41: 0 | X41: 0 | Y41: 0 | Z41: 0 | AA41: 0 | AB41: 0 | AC41: 0 | AD41: 0 | AE41: 0 | AF41: 0 | AG41: 0 | AH41: 0 | AI41: 0 | AJ41: 0 | AK41: 0 | AL41: 0 | AM41: 0 | AN41: 0 | AO41: 0
B42: 6.7.30 - Innerdører | F42: 40 | G42: 0 | I42: 0 | J42: 0 | K42: 0 | L42: 0 | M42: 0 | N42: 0 | O42: 0 | P42: 0 | Q42: 0 | R42: 0 | S42: 0 | T42: 0 | U42: 0 | V42: 0 | W42: 0 | X42: 0 | Y42: 0 | Z42: 0 | AA42: 0 | AB42: 0 | AC42: 0 | AD42: 0 | AE42: 0 | AF42: 0 | AG42: 0.87 | AH42: 0 | AI42: 0 | AJ42: 0 | AK42: 0 | AL42: 0 | AM42: 0 | AN42: 0 | AO42: 0
B43: 6.7.32 - Ytterdører med utv. omramming | F43: 41 | G43: 0 | I43: 0 | J43: 0 | K43: 0 | L43: 0 | M43: 0.42 | N43: 0 | O43: 0 | P43: 0 | Q43: 0 | R43: 0.42 | S43: 0 | T43: 0 | U43: 0 | V43: 0 | W43: 0.42 | X43: 0 | Y43: 0 | Z43: 0 | AA43: 0.42 | AB43: 0.42 | AC43: 0.42 | AD43: 0 | AE43: 0.42 | AF43: 0.42 | AG43: 0.42 | AH43: 0.84 | AI43: 0.42 | AJ43: 0.42 | AK43: 0 | AL43: 0.42 | AM43: 0 | AN43: 0.42 | AO43: 0.42
B44: 6.7.40 - Utforinger og listverk | F44: 42 | G44: 0 | I44: 0 | J44: 0 | K44: 0 | L44: 0 | M44: 0 | N44: 0 | O44: 0 | P44: 0 | Q44: 0 | R44: 0 | S44: 0 | T44: 0 | U44: 0 | V44: 0 | W44: 0 | X44: 0 | Y44: 0 | Z44: 0 | AA44: 0 | AB44: 0 | AC44: 0 | AD44: 0 | AE44: 0 | AF44: 0 | AG44: 0 | AH44: 0 | AI44: 0 | AJ44: 0 | AK44: 0 | AL44: 0 | AM44: 0 | AN44: 0 | AO44: 0
B45: 6.7.50 - Ventilasjonsaggregat/sentralstøvsuger m/punkter | F45: 43 | G45: 0 | I45: 0 | J45: 0 | K45: 0 | L45: 0 | M45: 0 | N45: 0 | O45: 0 | P45: 0 | Q45: 0 | R45: 0 | S45: 0 | T45: 0 | U45: 0 | V45: 0 | W45: 0 | X45: 0 | Y45: 0 | Z45: 0 | AA45: 0 | AB45: 0 | AC45: 0 | AD45: 0 | AE45: 0 | AF45: 0 | AG45: 0 | AH45: 0 | AI45: 0 | AJ45: 0 | AK45: 0 | AL45: 0 | AM45: 0 | AN45: 0 | AO45: 0
B46: 6.7.76 - Kjøkken-/bad- og garderobeinnredninger | F46: 44 | G46: 0 | I46: 0 | J46: 0 | K46: 0 | L46: 0 | M46: 0 | N46: 0 | O46: 0 | P46: 0 | Q46: 0 | R46: 0 | S46: 0 | T46: 0 | U46: 0 | V46: 0 | W46: 0 | X46: 0 | Y46: 0 | Z46: 0 | AA46: 0 | AB46: 0 | AC46: 0 | AD46: 0 | AE46: 0 | AF46: 0 | AG46: 0 | AH46: 0 | AI46: 0 | AJ46: 0 | AK46: 0 | AL46: 0 | AM46: 0 | AN46: 0 | AO46: 0
B47: 6.7.86 - Montering Ildsted | F47: 45 | G47: 0 | I47: 0 | J47: 0 | K47: 0 | L47: 0 | M47: 0 | N47: 0 | O47: 0 | P47: 0 | Q47: 0 | R47: 0 | S47: 0 | T47: 0 | U47: 0 | V47: 0 | W47: 0 | X47: 0 | Y47: 0 | Z47: 0 | AA47: 0 | AB47: 0 | AC47: 0 | AD47: 0 | AE47: 0 | AF47: 0 | AG47: 0 | AH47: 0 | AI47: 0 | AJ47: 0 | AK47: 0 | AL47: 0 | AM47: 0 | AN47: 0 | AO47: 0
B48: 6.7.88 - Annen innredning | F48: 46 | G48: 0 | I48: 0 | J48: 0 | K48: 0 | L48: 0 | M48: 0 | N48: 0 | O48: 0 | P48: 0 | Q48: 0 | R48: 0 | S48: 0 | T48: 0 | U48: 0 | V48: 0 | W48: 0 | X48: 0 | Y48: 0 | Z48: 0 | AA48: 0 | AB48: 0 | AC48: 0 | AD48: 0 | AE48: 0 | AF48: 0 | AG48: 0 | AH48: 0 | AI48: 0 | AJ48: 0 | AK48: 0 | AL48: 0 | AM48: 0 | AN48: 0 | AO48: 0
E49: BRA | F49: 68 | G49: 0 | I49: 19.8 | J49: 19.8 | K49: 19.8 | L49: 19.8 | M49: 30.6 | N49: 21.8 | O49: 25.6 | P49: 20.2 | Q49: 22.3 | R49: 25.6 | S49: 33.7 | T49: 33.7 | U49: 37.2 | V49: 33.7 | W49: 46.6 | X49: 25.6 | Y49: 37.2 | Z49: 33 | AA49: 37.2 | AB49: 30.1 | AC49: 36.7 | AD49: 34.5 | AE49: 33.1 | AF49: 28.4 | AG49: 45.4 | AH49: 35.9 | AI49: 25.5 | AJ49: 26.7 | AK49: 47 | AL49: 46.3 | AM49: 46.4 | AN49: 44.9 | AO49: 40.2
A59: 1 | B59: Velg garasjetype
A60: 2
A61: 3 | B61: GA 101 S-W - Enkel garasje
A62: 4 | B62: GA 102 S-W - Enkel garasje
A63: 5 | B63: GA 103 V-W - Enkel garasje
A64: 6 | B64: GA 104 HV-W - Enkel garasje
A65: 7 | B65: GA 106 S-W - Enkel garasje
A66: 8 | B66: GA 107 S-W - Enkel carport
A67: 9 | B67: GA 108 S-W - Enkel garasje
A68: 10 | B68: GA 109 S-W - Enkel garasje
A69: 11 | B69: GA 111 F - Enkel carport
A70: 12 | B70: GA 112 F - Enkel garasje
A71: 13 | B71: GA 201 S-W - Dobbel garasje
A72: 14 | B72: GA 202 S-W - Dobbel garasje
A73: 15 | B73: GA 203 V-W - Dobbel garasje
A74: 16 | B74: GA 204 HV-W - Dobbel garasje
A75: 17 | B75: GA 206 S-W - Dobbel garasje
A76: 18 | B76: GA 207 P - Enkel garasje m/ carpor
A77: 19 | B77: GA 208 S-W - Dobbel garasje
A78: 20 | B78: GA 209 S-W - Dobbel garasje
A79: 21 | B79: GA 211 F - Dobbel garasje
A80: 22 | B80: GA 301 S-W - Enkel garasje m/bod
A81: 23 | B81: GA 302 S-W - Enkel garasje m/bod
A82: 24 | B82: GA 303 V-W - Enkel garasje m/bod
A83: 25 | B83: GA 305 P - Enkel garasje m/bod
A84: 26 | B84: GA 307 P - Enkel garasje m/bod
A85: 27 | B85: GA 308 F - Dobbel garasje m/ bod
A86: 28 | B86: GA 309 P - Carport m/ bod
A87: 29 | B87: GA 310 F - Carport m/ bod
A88: 30 | B88: GA 311 F - Carport m/ bod
A89: 31 | B89: GA 401 S-A - Dobbel garasje m/ hems
A90: 32 | B90: GA 402 S-A - Dobbel garasje m/ hems
A91: 33 | B91: GA 403 S-A - Dobbel garasje m/ hems
A92: 34 | B92: GA 404 HV-A - Dobbel garasje m/ hems
A93: 35 | B93: GA 405 S-A - Dobbel garasje m/ hems
A94: 36
A95: 37
A96: 38
A97: 39
A98: 40
A99: 41
A100: 42
A101: 43
A102: 44
A103: 45
B110: Ja
B111: Nei

Sheet Timeverksrapport
G2: Budsjettrapport
K3: Kalkyledato : | L3: 2024-12-10
K4: Revisjonsdato :
C6: BYGGER'N GARASJER - TØMRERTIMER
E9: Hustype : | J9: =HLOOKUP(Tabell!$BB$2,Tabell!$G$1:$BH$49,49,FALSE) -> 19.8 | K9: =HLOOKUP(Tabell!$BB$2,Tabell!$G$1:$BI$51,51,FALSE) ->  | L9: =HLOOKUP(Tabell!$BB$2,Tabell!$G$1:$BH$49,70,FALSE) -> 
E10: Prosjektnr : | K10: =HLOOKUP(Tabell!$BB$2,Tabell!$G$1:$BH$49,70,FALSE) ->  | L10: =HLOOKUP(Tabell!$BB$2,Tabell!$G$1:$BH$49,70,FALSE) -> 
E11: Tiltakshaver : | K11: =HLOOKUP(Tabell!$BB$2,Tabell!$G$1:$BH$49,70,FALSE) ->  | L11: =HLOOKUP(Tabell!$BB$2,Tabell!$G$1:$BH$49,70,FALSE) -> 
E12: Byggeadresse : | K12: =HLOOKUP(Tabell!$BB$2,Tabell!$G$1:$BH$49,70,FALSE) ->  | L12: =HLOOKUP(Tabell!$BB$2,Tabell!$G$1:$BH$49,70,FALSE) -> 
C15: Tidsforbruk er kalkulert med grunnlag fra Akkordtariffen for tømrerfaget.
C16: Timeverkene er fordelt på ulike milepæler i prosjektet
C17: Erfaringer og tilbakemeldinger tilsier at bedrifter som ikke har akkordarbeid i sin bedrift, bør øke timeverket med 20 – 30 %.
C19: Milepæler | I19: Kalkulert | J19: Justering | K19: Ekstratimer | L19: Sum
C20: 6.1 - Rigg og drift | I20: =SUM(I21:I24) -> 0 | L20: =SUM(L21:L24) -> 0
D21: 6.1.20 - Rigg og drift av byggeplass | I21: =HLOOKUP(Tabell!$BB$2,Tabell!$G$1:$BH$48,3,FALSE) -> 0 | J21: 0 | K21: 0 | L21: =I21+(I21*J21)+K21 -> 0
D22: 6.1.40 - Riving og klargjøring | I22: =HLOOKUP(Tabell!$BB$2,Tabell!$G$1:$BH$48,4,FALSE) -> 0 | J22: 0 | K22: 0 | L22: =I22+(I22*J22)+K22 -> 0
D23: 6.1.50 - Stillasjer | I23: =HLOOKUP(Tabell!$BB$2,Tabell!$G$1:$BH$48,5,FALSE) -> 0 | J23: 0 | K23: 0 | L23: 0
D24: 6.1.80 - Ledig | I24: =HLOOKUP(Tabell!$BB$2,Tabell!$G$1:$BH$48,6,FALSE) -> 0 | J24: 0 | K24: 0 | L24: 0
C26: 6.4 - Tett råbygg | I26: =SUM(I27:I40) -> 27.45 | L26: =SUM(L27:L40) -> 27.45
D27: 6.4.10 - Svillunderlag og bunnsvill | I27: =HLOOKUP(Tabell!$BB$2,Tabell!$G$1:$BH$48,7,FALSE) -> 1.48 | J27: 0 | K27: 0 | L27: 1.48
D28: 6.4.20 - Bindingsverk i yttervegger | I28: =HLOOKUP(Tabell!$BB$2,Tabell!$G$1:$BH$48,8,FALSE) -> 8.99 | J28: 0 | K28: 0 | L28: 8.99
D29: 6.4.22 - Bindingsverk i innvendige bærevegger | I29: =HLOOKUP(Tabell!$BB$2,Tabell!$G$1:$BH$48,9,FALSE) -> 0 | J29: 0 | K29: 0 | L29: 0
D30: 6.4.24 - Søyler og dragere | I30: =HLOOKUP(Tabell!$BB$2,Tabell!$G$1:$BH$48,10,FALSE) -> 0 | J30: 0 | K30: 0 | L30: 0
D31: 6.4.30 - Bjelkelag | I31: =HLOOKUP(Tabell!$BB$2,Tabell!$G$1:$BH$48,11,FALSE) -> 0 | J31: 0 | K31: 0 | L31: 0
D32: 6.4.32 - Takbjelkelag | I32: =HLOOKUP(Tabell!$BB$2,Tabell!$G$1:$BH$48,12,FALSE) -> 0 | J32: 0 | K32: 0 | L32: 0
D33: 6.4.34 - Plattformgulv | I33: =HLOOKUP(Tabell!$BB$2,Tabell!$G$1:$BH$48,13,FALSE) -> 0 | J33: 0 | K33: 0 | L33: 0
D34: 6.4.40 - Taksperrer | I34: =HLOOKUP(Tabell!$BB$2,Tabell!$G$1:$BH$48,14,FALSE) -> 0 | J34: 0 | K34: 0 | L34: 0
D35: 6.4.42 - Takstoler | I35: =HLOOKUP(Tabell!$BB$2,Tabell!$G$1:$BH$48,15,FALSE) -> 7.46 | J35: 0 | K35: 0 | L35: 7.46
D36: 6.4.50 - Vindtettplater/vindsperre og sløyfer | I36: =HLOOKUP(Tabell!$BB$2,Tabell!$G$1:$BH$48,16,FALSE) -> 0 | J36: 0 | K36: 0 | L36: 0
D37: 6.4.52 - Undertak og sløyfer | I37: =HLOOKUP(Tabell!$BB$2,Tabell!$G$1:$BH$48,17,FALSE) -> 1.21 | J37: 0 | K37: 0 | L37: 1.21
D38: 6.4.60 - Vindu og dører med tetting | I38: =HLOOKUP(Tabell!$BB$2,Tabell!$G$1:$BH$48,18,FALSE) -> 8.31 | J38: 0 | K38: 0 | L38: 8.31
D39: 6.4.70 - Ledig | I39: =HLOOKUP(Tabell!$BB$2,Tabell!$G$1:$BH$48,19,FALSE) -> 0 | J39: 0 | K39: 0 | L39: 0
D40: 6.4.80 - Montering elementer | I40: =HLOOKUP(Tabell!$BB$2,Tabell!$G$1:$BH$48,20,FALSE) -> 0 | J40: 0 | K40: 0 | L40: 0
C42: 6.5 - Fasade | I42: =SUM(I43:I50) -> 41.02 | L42: =SUM(L43:L50) -> 41.02
D43: 6.5.20 - Utvendig kledning med lekter | I43: =HLOOKUP(Tabell!$BB$2,Tabell!$G$1:$BH$48,22,FALSE) -> 9.87 | J43: 0 | K43: 0 | L43: =I43+(I43*J43)+K43 -> 9.87
D44: 6.5.22 - Omramming dør/vindu | I44: =HLOOKUP(Tabell!$BB$2,Tabell!$G$1:$BH$48,23,FALSE) -> 2.73 | J44: 0 | K44: 0 | L44: 2.73
D45: 6.5.24 - Hjørnebord, dekkeforkanter, fasadedekor, etc. | I45: =HLOOKUP(Tabell!$BB$2,Tabell!$G$1:$BH$48,24,FALSE) -> 1.28 | J45: 0 | K45: 0 | L45: 1.28
D46: 6.5.30 - Gesims- gavlkasser, forkantbord og vindskier | I46: =HLOOKUP(Tabell!$BB$2,Tabell!$G$1:$BH$48,25,FALSE) -> 17.01 | J46: 0 | K46: 0 | L46: 17.01
D47: 6.5.40 - Steinlekter, takrenner og taktekking | I47: =HLOOKUP(Tabell!$BB$2,Tabell!$G$1:$BH$48,26,FALSE) -> 10.13 | J47: 0 | K47: 0 | L47: 10.13
D48: 6.5.50 - Terrassegulv, rekkverk og utv. trapper | I48: =HLOOKUP(Tabell!$BB$2,Tabell!$G$1:$BH$48,27,FALSE) -> 0 | J48: 0 | K48: 0 | L48: 0
D49: 6.5.60 - Ledig | I49: =HLOOKUP(Tabell!$BB$2,Tabell!$G$1:$BH$48,28,FALSE) -> 0 | J49: 0 | K49: 0 | L49: 0
D50: 6.5.90 - Stålpipe | I50: =HLOOKUP(Tabell!$BB$2,Tabell!$G$1:$BH$48,29,FALSE) -> 0 | J50: 0 | K50: 0 | L50: 0
C52: 6.6 - Klart for rør og EL | I52: =SUM(I53:I59) -> 0 | L52: =SUM(L53:L59) -> 0
D53: 6.6.10 - Isolasjon og dampsperre i yttervegg og yttertak | I53: =HLOOKUP(Tabell!$BB$2,Tabell!$G$1:$BH$48,31,FALSE) -> 0 | J53: 0 | K53: 0 | L53: =I53+(I53*J53)+K53 -> 0
D54: 6.6.14 - Isolasjon i innervegg og etasjeskillere | I54: =HLOOKUP(Tabell!$BB$2,Tabell!$G$1:$BH$48,32,FALSE) -> 0 | J54: 0 | K54: 0 | L54: 0
D55: 6.6.20 - Lekting av vegger og himling | I55: =HLOOKUP(Tabell!$BB$2,Tabell!$G$1:$BH$48,33,FALSE) -> 0 | J55: 0 | K55: 0 | L55: 0
D56: 6.6.30 - Bindingsverk i lettvegger | I56: =HLOOKUP(Tabell!$BB$2,Tabell!$G$1:$BH$48,34,FALSE) -> 0 | J56: 0 | K56: 0 | L56: 0
D57: 6.6.40 - Skyvedørskarmer | I57: =HLOOKUP(Tabell!$BB$2,Tabell!$G$1:$BH$48,35,FALSE) -> 0 | J57: 0 | K57: 0 | L57: 0
D58: 6.6.50 - Rørsystem Ventilasjon og sentralstøvsuger | I58: =HLOOKUP(Tabell!$BB$2,Tabell!$G$1:$BH$48,36,FALSE) -> 0 | J58: 0 | K58: 0 | L58: 0
D59: 6.6.90 - Ledig | I59: =HLOOKUP(Tabell!$BB$2,Tabell!$G$1:$BH$48,37,FALSE) -> 0 | J59: 0 | K59: 0 | L59: 0
C61: 6.7 - Ferdigstillelse | I61: =SUM(I62:I71) -> 0 | L61: =SUM(L62:L71) -> 0
D62: 6.7.10 - Innvendige plater og panel | I62: =HLOOKUP(Tabell!$BB$2,Tabell!$G$1:$BH$48,39,FALSE) -> 0 | J62: 0 | K62: 0 | L62: =I62+(I62*J62)+K62 -> 0
D63: 6.7.20 - Gulvbord og parkett | I63: =HLOOKUP(Tabell!$BB$2,Tabell!$G$1:$BH$48,40,FALSE) -> 0 | J63: 0 | K63: 0 | L63: 0
D64: 6.7.22 - Baderomsplater | I64: =HLOOKUP(Tabell!$BB$2,Tabell!$G$1:$BH$48,41,FALSE) -> 0 | J64: 0 | K64: 0 | L64: 0
D65: 6.7.30 - Innerdører | I65: =HLOOKUP(Tabell!$BB$2,Tabell!$G$1:$BH$48,42,FALSE) -> 0 | J65: 0 | K65: 0 | L65: 0
D66: 6.7.32 - Ytterdører med utv. omramming | I66: =HLOOKUP(Tabell!$BB$2,Tabell!$G$1:$BH$48,43,FALSE) -> 0 | J66: 0 | K66: 0 | L66: 0
D67: 6.7.40 - Utforinger og listverk | I67: =HLOOKUP(Tabell!$BB$2,Tabell!$G$1:$BH$48,44,FALSE) -> 0 | J67: 0 | K67: 0 | L67: 0
D68: 6.7.50 - Ventilasjonsaggregat/sentralstøvsuger m/punkter | I68: =HLOOKUP(Tabell!$BB$2,Tabell!$G$1:$BH$48,45,FALSE) -> 0 | J68: 0 | K68: 0 | L68: 0
D69: 6.7.76 - Kjøkken-/bad- og garderobeinnredninger | I69: =HLOOKUP(Tabell!$BB$2,Tabell!$G$1:$BH$48,46,FALSE) -> 0 | J69: 0 | K69: 0 | L69: 0
D70: 6.7.86 - Montering Ildsted | I70: =HLOOKUP(Tabell!$BB$2,Tabell!$G$1:$BH$48,47,FALSE) -> 0 | J70: 0 | K70: 0 | L70: 0
D71: 6.7.88 - Annen innredning | I71: =HLOOKUP(Tabell!$BB$2,Tabell!$G$1:$BH$48,48,FALSE) -> 0 | J71: 0 | K71: 0 | L71: 0
C73: Sum | D73: Timer | I73: =I20+I26+I42+I52+I61 -> 68.47 | L73: =L20+L26+L42+L52+L61 -> 68.47
K78: kr/m2: | L78: =#REF!/L9 -> 
I81: =HLOOKUP(Tabell!$BB$2,Tabell!$G$1:$BH$48,2,FALSE) -> GA 101 S-W - Enkel garasje

Sheet Prisliste byggesett (hidden)
A2: -4146
C4: PRISLISTE BYGGER'N GARASJER | G4: Om det er foretatt endringer/justeringer i arkfane Budsjettrapport, er det nødvendig å trykke Oppdater for at disse endringene skal bli gjeldende for prisliste.
C5: Byggesett
C6: Firmanavn
C9: Prisliste utarbeidet | D9: =Timeverksrapport!#REF! ->  | E9: =Timeverksrapport!#REF! -> 
C10: =TODAY() -> 2025-03-18
C12: Gjelder til
C13: =C10+30 -> 2025-04-17
C15: Garasjetype | D15: m² BRA | E15: Pris inkl. mva.
D17: 19.8
D18: 19.8
D19: 19.8
D20: 19.8
D21: 30.6
D22: 21.8
D23: 25.6
D24: 20.2
D25: 22.3
D26: 25.6
D27: 33.7
D28: 33.7
D29: 37.2
D30: 33.7
D31: 46.6
D32: 25.6
D33: 37.2
D34: 33
D35: 37.2
D36: 30.1
D37: 36.7
D38: 34.5
D39: 33.1
D40: 28.4
D41: 45.4
D42: 35.9
D43: 25.5
D44: 26.7
D45: 47
D46: 46.3
D47: 46.4
D48: 44.9
C49: GA 405 S-A - Dobbel garasje m/ hems | D49: 40.2 | E49: 314716.7533
A51: 30
A52: 31
A58: 32
A59: 33
A60: 34
A61: 35
A62: 36
A63: 37 | B63: Følgende er ikke inkludert i Byggesett-leveranse:
A64: 38 | B64: Tomt, grunnarbeider / gravearbeider, byggestrøm, VA og EL tilførsel inn til grunnmur, tilknytningsavgift EL, overvannsannlegg, kommunale gebyrer, indeksregulering, uavhengig kontrollør, terrasse, garasje. Håndverksarbeider som byggmester, rørlegger, elektriker og grunnmur/støpte golv/pipe, vedovn/oppvarming, overflatebehandling av tak, vegger og gulv. Samtlige priser er inkl. mva. og basert på HIBA® GARASJE LEVERANSEBESKRIVELSE 1-2020. Vi tar forbehold om trykkfeil.
A65: 39
A66: 40
